bitfinex-derivatives/quotes_BTCF0:USTF0_20250114
["timestamp","ask_amount","ask_price","bid_price","bid_amount"]
[1736864185422,0.003,96388.0,96385.0,0.001]
[1736864186020,0.003,96389.0,96385.0,0.001]
[1736864187738,0.22,96391.0,96385.0,0.001]
[1736864187929,0.003,96388.0,96385.0,0.001]
[1736864188631,0.003,96389.0,96385.0,0.001]
[1736864189027,0.003,96389.0,96379.0,0.15529345]
[1736864189229,0.003,96389.0,96385.0,0.001]
[1736864189525,0.003,96388.0,96385.0,0.001]
[1736864190131,0.003,96388.0,96376.0,0.00052]
[1736864190322,0.3608,96382.0,96356.0,0.3608]
[1736864190625,0.3608,96371.0,96360.0,0.15529345]
[1736864190822,0.1499,96370.0,96356.0,0.3608]
[1736864191130,0.1499,96370.0,96366.0,0.3608]
[1736864191627,0.00803089,96388.0,96366.0,0.3608]
[1736864191824,0.1481,96387.0,96370.0,0.15529345]
[1736864192129,0.1481,96387.0,96366.0,0.3608]
[1736864192316,0.3608,96382.0,96366.0,0.3608]
[1736864192521,0.3608,96382.0,96376.0,0.001]
[1736864193117,0.3608,96382.0,96366.0,0.3608]
[1736864193323,0.0763,96381.0,96370.0,0.15529345]
[1736864193727,0.0763,96381.0,96376.0,0.001]
[1736864194221,0.0763,96381.0,96370.0,0.15529345]
[1736864194530,0.0763,96381.0,96366.0,0.3608]
[1736864194730,0.0763,96381.0,96370.0,0.15529345]
[1736864194936,0.0783,96381.0,96374.0,0.3608]
[1736864195229,0.002,96381.0,96375.0,0.051904]
[1736864195635,0.002,96382.0,96375.0,0.051904]
[1736864195833,0.001,96381.0,96376.0,0.001]
[1736864196030,0.001,96381.0,96377.0,0.051902]
[1736864197029,0.1481,96387.0,96374.0,0.3608]
[1736864197330,0.001,96381.0,96377.0,0.15629345]
[1736864197529,0.002,96381.0,96377.0,0.15629345]
[1736864198248,0.1481,96387.0,96378.0,0.052902]
[1736864198249,0.001,96387.0,96378.0,0.052902]
[1736864198433,0.1,96400.0,96387.0,0.051897]
[1736864198632,0.00789263,96421.0,96400.0,0.05189]
[1736864198930,0.36140001,96429.0,96413.0,0.3608]
[1736864198931,0.27496609,96415.0,96413.0,0.3608]
[1736864199123,0.27496609,96415.0,96414.0,0.3608]
[1736864199318,0.3608,96454.0,96414.0,0.3608]
[1736864199319,0.2268,96447.0,96415.0,0.051882]
[1736864199523,0.2268,96447.0,96434.0,0.3608]
[1736864199726,0.1527,96447.0,96434.0,0.3608]
[1736864200132,0.09129267,96435.0,96434.0,0.413672]
[1736864200542,0.0078159,96447.0,96444.0,0.051866]
[1736864200723,0.3608,96475.0,96453.0,0.051861]
[1736864200930,0.3608,96475.0,96462.0,0.3608]
[1736864201125,0.36885901,96475.0,96462.0,0.3608]
[1736864201636,0.36885901,96475.0,96459.0,0.3608]
[1736864201937,0.3608,96467.0,96446.0,0.3608]
[1736864202140,0.3608,96451.0,96437.0,0.18662653]
[1736864202433,0.0697,96450.0,96437.0,0.18662653]
[1736864203020,0.1427,96450.0,96437.0,0.18662653]
[1736864203421,0.1427,96450.0,96434.0,0.36866834]
[1736864204421,0.1427,96450.0,96434.0,0.3608]
[1736864204836,0.1427,96450.0,96440.0,0.15529345]
[1736864205040,0.0697,96450.0,96446.0,0.3608]
[1736864205234,0.00788025,96468.0,96446.0,0.3608]
[1736864205541,0.0721,96466.0,96457.0,0.3608]
[1736864206932,0.0721,96466.0,96457.0,0.3618]
[1736864207137,0.0721,96466.0,96457.0,0.001]
[1736864207438,0.0721,96466.0,96457.0,0.3618]
[1736864207837,0.3608,96477.0,96458.0,0.052859]
[1736864208035,0.3608,96477.0,96460.0,0.15529345]
[1736864208036,0.002,96466.0,96460.0,0.15529345]
[1736864208831,0.002,96466.0,96458.0,0.052859]
[1736864209033,0.3608,96477.0,96458.0,0.052859]
[1736864209034,0.002,96471.0,96458.0,0.052859]
[1736864209430,0.002,96471.0,96460.0,0.001]
[1736864209836,0.002,96471.0,96461.0,0.001]
[1736864210430,0.002,96471.0,96458.0,0.001]
[1736864210736,0.3608,96468.0,96458.0,0.001]
[1736864210932,0.002,96466.0,96458.0,0.15629345]
[1736864211644,0.002,96466.0,96458.0,0.001]
[1736864211830,0.002,96471.0,96460.0,0.001]
[1736864212049,0.002,96471.0,96460.0,0.15629345]
[1736864212445,0.002,96471.0,96460.0,0.001]
[1736864212446,0.3608,96468.0,96460.0,0.001]
[1736864212941,0.3608,96468.0,96458.0,0.001]
[1736864213736,0.002,96466.0,96460.0,0.001]
[1736864214328,0.002,96466.0,96434.0,0.412671]
[1736864214529,0.3608,96450.0,96434.0,0.3608]
[1736864214736,0.3608,96442.0,96434.0,0.3608]
[1736864215231,0.3608,96442.0,96430.0,0.18662653]
[1736864215437,0.1401,96449.0,96432.0,0.3608]
[1736864217643,0.0717,96448.0,96432.0,0.3608]
[1736864218241,0.0717,96448.0,96432.0,0.3628]
[1736864218840,0.15529345,96442.0,96432.0,0.3608]
[1736864219147,0.0717,96448.0,96432.0,0.3628]
[1736864219446,8.377e-05,96441.0,96432.0,0.3628]
[1736864220537,0.3608,96438.0,96424.0,0.3623554]
[1736864220738,0.3608,96428.0,96424.0,0.0015554]
[1736864222046,0.3608,96428.0,96402.0,0.3608]
[1736864222248,0.3608,96416.0,96402.0,0.3608]
[1736864222438,0.3608,96416.0,96390.0,0.51609345]
[1736864222636,0.3608,96408.0,96390.0,0.36132]
[1736864222841,0.3608,96408.0,96390.0,0.3606804]
[1736864223053,0.3608,96400.0,96390.0,0.3606804]
[1736864223643,0.3608,96400.0,96384.0,0.18662653]
[1736864223841,0.3608,96400.0,96381.0,0.3608]
[1736864224242,0.3608,96400.0,96389.0,0.3608]
[1736864224439,0.3608,96408.0,96390.0,0.15529345]
[1736864224649,0.3608,96408.0,96398.0,0.15529345]
[1736864224949,0.3608,96411.0,96393.0,0.009]
[1736864225139,0.3608,96403.0,96393.0,0.009]
[1736864225341,0.51609345,96403.0,96393.0,0.009]
[1736864225559,0.51609345,96403.0,96389.0,0.002]
[1736864226142,0.3608,96403.0,96389.0,0.002]
[1736864226844,0.3618,96403.0,96393.0,0.3608]
[1736864227552,0.3618,96403.0,96393.0,0.3618]
[1736864227939,0.001,96403.0,96393.0,0.3618]
[1736864228548,0.001,96403.0,96393.0,0.3608]
[1736864229051,0.001,96403.0,96393.0,0.36890068]
[1736864229252,0.001,96403.0,96401.0,0.3608]
[1736864229643,0.001,96403.0,96394.0,0.052893]
[1736864229850,0.001,96403.0,96394.0,0.05266358]
[1736864230049,0.001,96403.0,96402.0,0.3608]
[1736864231057,0.003,96403.0,96402.0,0.3608]
[1736864231760,0.002,96403.0,96402.0,0.3608]
[1736864232453,0.0692,96432.0,96405.0,0.051887]
[1736864232653,0.0692,96432.0,96428.0,0.3608]
[1736864232865,0.3608,96445.0,96429.0,0.051874]
[1736864232866,0.0706,96444.0,96429.0,0.051874]
[1736864233046,0.0706,96444.0,96437.0,0.3608]
[1736864234152,0.3608,96445.0,96437.0,0.3608]
[1736864234452,0.0692,96452.0,96437.0,0.3608]
[1736864234453,0.0692,96452.0,96438.0,0.05287]
[1736864234959,0.002,96439.0,96438.0,0.05287]
[1736864235857,0.002,96439.0,96438.0,0.0658419]
[1736864236241,0.002,96439.0,96438.0,0.3658419]
[1736864236449,0.0718,96466.0,96438.0,0.3658419]
[1736864236652,0.0718,96466.0,96440.0,0.051869]
[1736864236853,0.0718,96466.0,96440.0,0.0648409]
[1736864237066,0.0718,96466.0,96440.0,0.3658409]
[1736864237450,0.08042937,96485.0,96460.0,0.051858]
[1736864237653,0.08042937,96485.0,96473.0,0.3608]
[1736864237654,0.0723,96485.0,96473.0,0.3608]
[1736864238063,0.15529345,96483.0,96462.0,0.3608]
[1736864238254,0.3608,96477.0,96462.0,0.3608]
[1736864238953,0.3608,96477.0,96470.0,0.3608]
[1736864239258,0.0723,96485.0,96470.0,0.3608]
[1736864240155,0.0723,96485.0,96471.0,0.001]
[1736864240456,0.0723,96485.0,96470.0,0.3618]
[1736864241351,0.0723,96485.0,96471.0,0.001]
[1736864241553,0.3608,96476.0,96471.0,0.001]
[1736864242757,0.3608,96476.0,96459.0,0.00836827]
[1736864242971,0.3608,96467.0,96446.0,0.3608]
[1736864243161,0.3608,96467.0,96439.0,0.00155524]
[1736864243162,0.3608,96457.0,96439.0,0.00155524]
[1736864243357,0.3608,96448.0,96439.0,0.00155524]
[1736864243759,0.3608,96440.0,96439.0,0.00155524]
[1736864244460,0.3608,96440.0,96416.0,0.18520903]
[1736864244772,0.3608,96427.0,96416.0,0.18520903]
[1736864245061,0.0681,96426.0,96416.0,0.18520903]
[1736864245264,0.0681,96426.0,96413.0,0.3608]
[1736864245851,0.0681,96426.0,96422.0,0.3608]
[1736864246658,0.3608,96440.0,96422.0,0.3608]
[1736864246862,0.3608,96440.0,96432.0,0.3608]
[1736864247963,0.0685,96447.0,96432.0,0.3608]
[1736864249861,0.0685,96447.0,96432.0,0.36960862]
[1736864250265,0.0685,96447.0,96440.0,0.3608]
[1736864251867,0.3608,96468.0,96440.0,0.3608]
[1736864252060,0.0732,96455.0,96450.0,0.3608]
[1736864255464,0.0732,96455.0,96451.0,0.001]
[1736864255665,0.0732,96455.0,96451.0,0.052862]
[1736864257467,0.00864803,96475.0,96451.0,0.052862]
[1736864257668,0.0706,96474.0,96460.0,0.51609345]
[1736864258580,0.0706,96474.0,96460.0,0.56795145]
[1736864258971,0.0706,96474.0,96460.0,0.56895145]
[1736864259968,0.0706,96474.0,96472.0,0.3608]
[1736864261080,0.0706,96474.0,96460.0,0.37138938]
[1736864261366,0.3608,96465.0,96433.0,0.30940668]
[1736864261593,0.3608,96448.0,96438.0,0.00883972]
[1736864261965,0.3608,96448.0,96438.0,0.16413317]
[1736864262165,0.3608,96448.0,96439.0,0.0738]
[1736864262560,0.3608,96448.0,96433.0,0.36969882]
[1736864262760,0.3608,96448.0,96433.0,0.3608]
[1736864263268,0.3608,96448.0,96438.0,0.003]
[1736864263974,0.3608,96448.0,96433.0,0.3648]
[1736864264368,0.3608,96448.0,96439.0,0.051869]
[1736864264576,0.3608,96448.0,96440.0,0.0711]
[1736864264970,0.3608,96448.0,96441.0,0.051868]
[1736864266477,0.3608,96448.0,96441.0,0.053868]
[1736864267975,0.3608,96448.0,96442.0,0.01297208]
[1736864268183,0.3608,96448.0,96443.0,0.051867]
[1736864268567,0.3608,96448.0,96445.0,0.051866]
[1736864268976,0.3608,96448.0,96446.0,0.001]
[1736864270173,0.3608,96460.0,96446.0,0.3618]
[1736864270370,0.3608,96460.0,96450.0,0.15529345]
[1736864271572,0.3608,96460.0,96451.0,0.051863]
[1736864271983,0.3608,96460.0,96450.0,0.15529345]
[1736864272176,0.3608,96460.0,96446.0,0.3628]
[1736864272880,0.3608,96460.0,96445.0,0.18520903]
[1736864272881,0.3608,96447.0,96445.0,0.18520903]
[1736864273085,0.3608,96447.0,96442.0,0.18520903]
[1736864273086,0.1417,96446.0,96442.0,0.18520903]
[1736864274178,0.0736,96446.0,96442.0,0.18520903]
[1736864274383,0.0736,96446.0,96433.0,0.00884215]
[1736864274384,0.3608,96445.0,96433.0,0.18520903]
[1736864274584,0.3608,96434.0,96433.0,0.18520903]
[1736864275272,0.3608,96434.0,96431.0,0.00868866]
[1736864275482,0.3608,96434.0,96430.0,0.00155537]
[1736864275984,0.3608,96434.0,96430.0,0.01054483]
[1736864276986,0.3608,96434.0,96430.0,0.01454483]
[1736864277178,0.0697,96433.0,96430.0,0.01954483]
[1736864278285,0.0697,96433.0,96430.0,0.01055537]
[1736864278585,0.3608,96431.0,96423.0,0.18520903]
[1736864279184,0.3608,96431.0,96430.0,0.004]
[1736864279380,0.3608,96431.0,96430.0,0.009]
[1736864279978,0.3608,96431.0,96423.0,0.008]
[1736864280693,0.3608,96431.0,96423.0,0.004]
[1736864282488,0.3608,96431.0,96423.0,0.005]
[1736864282688,0.3608,96431.0,96423.0,0.001]
[1736864283589,0.3608,96431.0,96423.0,0.003]
[1736864283884,0.3608,96424.0,96423.0,0.003]
[1736864284075,0.3608,96424.0,96406.0,0.051887]
[1736864284076,0.3608,96424.0,96395.0,0.18676503]
[1736864284281,0.3608,96404.0,96395.0,0.18676503]
[1736864284580,0.3608,96404.0,96395.0,0.001556]
[1736864285184,0.3608,96396.0,96395.0,0.001556]
[1736864285791,0.3608,96396.0,96395.0,0.010556]
[1736864287093,0.3618,96396.0,96395.0,0.017556]
[1736864288397,0.3618,96396.0,96374.0,0.18520903]
[1736864288398,0.3618,96396.0,96374.0,0.00903188]
[1736864288588,0.3608,96376.0,96370.0,0.0709]
[1736864289797,0.3608,96384.0,96371.0,0.051905]
[1736864290000,0.3608,96387.0,96374.0,0.15529345]
[1736864290200,0.3608,96387.0,96374.0,0.15829345]
[1736864290797,0.3608,96387.0,96374.0,0.15529345]
[1736864291194,0.3608,96387.0,96374.0,0.15729345]
[1736864292687,0.4309,96395.0,96379.0,0.3608]
[1736864292897,0.0701,96395.0,96387.0,0.3608]
[1736864293495,0.3608,96405.0,96388.0,0.051896]
[1736864293698,0.3608,96405.0,96395.0,0.15529345]
[1736864293886,0.3608,96405.0,96396.0,0.0733]
[1736864294091,0.3608,96405.0,96396.0,0.485992]
[1736864294392,0.3608,96405.0,96398.0,0.051891]
[1736864295000,0.3608,96415.0,96405.0,0.051887]
[1736864295305,0.0675,96428.0,96408.0,0.051886]
[1736864295499,0.0675,96428.0,96420.0,0.15529345]
[1736864296997,0.0785,96428.0,96420.0,0.15629345]
[1736864298698,0.011,96428.0,96421.0,0.0738]
[1736864299788,0.011,96428.0,96420.0,0.16533791]
[1736864299994,0.012,96428.0,96421.0,0.001]
[1736864300703,0.012,96428.0,96422.0,0.051878]
[1736864301502,0.011,96428.0,96422.0,0.051878]
[1736864302396,0.002,96428.0,96422.0,0.051878]
[1736864302602,0.011,96428.0,96423.0,0.0703]
[1736864303099,0.009,96428.0,96423.0,0.0703]
[1736864303303,0.012,96428.0,96423.0,0.0703]
[1736864303895,0.009,96428.0,96424.0,0.051877]
[1736864304100,0.012,96428.0,96424.0,0.051877]
[1736864304313,0.012,96428.0,96425.0,0.01297418]
[1736864304498,0.012,96428.0,96424.0,0.051877]
[1736864304692,0.012,96428.0,96425.0,0.01297385]
[1736864304905,0.012,96428.0,96424.0,0.051877]
[1736864305109,0.012,96428.0,96425.0,0.01297405]
[1736864305310,0.012,96428.0,96424.0,0.051877]
[1736864305805,0.003,96428.0,96424.0,0.051877]
[1736864305998,0.006,96428.0,96425.0,0.001]
[1736864306209,0.009,96428.0,96425.0,0.001]
[1736864306399,0.009,96428.0,96427.0,0.3608]
[1736864306706,0.4341,96447.0,96440.0,0.051868]
[1736864306707,0.3608,96447.0,96440.0,0.051868]
[1736864306906,0.3608,96458.0,96442.0,0.051867]
[1736864307209,0.37000061,96468.0,96442.0,0.051867]
[1736864307411,0.3608,96459.0,96442.0,0.051867]
[1736864307611,0.37000061,96468.0,96442.0,0.051867]
[1736864309012,0.008,96447.0,96442.0,0.051867]
[1736864309607,0.00455593,96448.0,96442.0,0.051867]
[1736864309812,0.01255593,96448.0,96442.0,0.052867]
[1736864310417,0.002,96447.0,96442.0,0.06103705]
[1736864310607,0.006,96447.0,96442.0,0.06203705]
[1736864310815,0.3608,96485.0,96462.0,0.051856]
[1736864311028,0.3608,96485.0,96473.0,0.3608]
[1736864311320,0.3608,96485.0,96474.0,0.05185]
[1736864312717,0.3608,96485.0,96474.0,0.0093613]
[1736864313017,0.3608,96485.0,96473.0,0.3608]
[1736864313522,0.3648,96485.0,96474.0,0.05285]
[1736864314027,0.3648,96485.0,96476.0,0.051849]
[1736864314216,0.004,96485.0,96476.0,0.051849]
[1736864314411,0.004,96485.0,96477.0,0.001]
[1736864314612,0.001,96485.0,96477.0,0.001]
[1736864316115,0.005,96485.0,96477.0,0.001]
[1736864316524,0.005,96485.0,96478.0,0.051848]
[1736864316919,0.005,96485.0,96479.0,0.001]
[1736864317728,0.3608,96494.0,96479.0,0.001]
[1736864317921,0.005,96485.0,96480.0,0.15529345]
[1736864319415,0.3608,96494.0,96480.0,0.051847]
[1736864319619,0.006,96485.0,96484.0,0.10320154]
[1736864319820,0.006,96485.0,96480.0,0.051847]
[1736864320033,0.002,96485.0,96480.0,0.051847]
[1736864320229,0.004,96485.0,96480.0,0.052847]
[1736864320419,0.006,96485.0,96481.0,0.001]
[1736864320619,0.002,96485.0,96481.0,0.001]
[1736864320934,0.006,96485.0,96484.0,0.001]
[1736864321628,0.3608,96494.0,96485.0,0.051844]
[1736864321829,0.3608,96494.0,96486.0,0.065]
[1736864322218,0.3608,96494.0,96486.0,0.066]
[1736864323127,0.3648,96494.0,96486.0,0.067]
[1736864323325,0.3648,96494.0,96487.0,0.051843]
[1736864323524,0.07074,96504.0,96494.0,0.05184]
[1736864323733,0.0701,96504.0,96494.0,0.05184]
[1736864323929,0.3608,96516.0,96496.0,0.051838]
[1736864323930,0.096,96500.0,96496.0,0.051838]
[1736864324135,0.3608,96516.0,96496.0,0.051838]
[1736864324319,0.0678,96522.0,96509.0,0.3608]
[1736864324525,0.0678,96522.0,96512.0,0.10320154]
[1736864325928,0.3608,96518.0,96512.0,0.10320154]
[1736864326124,0.0678,96522.0,96512.0,0.10320154]
[1736864326536,0.0698,96522.0,96512.0,0.10420154]
[1736864326931,0.0698,96522.0,96512.0,0.10320154]
[1736864327135,0.0698,96522.0,96512.0,0.10420154]
[1736864328534,0.0698,96522.0,96512.0,0.001]
[1736864328535,0.3608,96515.0,96512.0,0.001]
[1736864329532,0.05183,96513.0,96481.0,0.30888668]
[1736864329738,0.7216,96492.0,96481.0,0.30888668]
[1736864329932,0.3608,96482.0,96481.0,0.30888668]
[1736864330130,0.3608,96482.0,96470.0,0.10320154]
[1736864330524,0.3608,96482.0,96461.0,0.00155494]
[1736864330730,0.3608,96465.0,96461.0,0.01075477]
[1736864330932,0.3608,96465.0,96461.0,0.00155494]
[1736864331138,0.3608,96482.0,96461.0,0.00155494]
[1736864331332,0.3608,96482.0,96463.0,0.3608]
[1736864331529,0.3608,96482.0,96470.0,0.10320154]
[1736864332038,0.3608,96488.0,96470.0,0.10320154]
[1736864332233,0.3608,96488.0,96481.0,0.002]
[1736864333037,0.3608,96488.0,96478.0,0.10320154]
[1736864333540,0.3608,96486.0,96478.0,0.10320154]
[1736864333836,0.3608,96486.0,96471.0,0.3608]
[1736864334044,0.0729,96485.0,96471.0,0.3608]
[1736864334537,0.0729,96485.0,96471.0,0.37018069]
[1736864334732,0.3608,96486.0,96471.0,0.37018069]
[1736864335135,0.3608,96478.0,96471.0,0.00938069]
[1736864335340,0.3608,96478.0,96463.0,0.4301]
[1736864335537,0.3608,96478.0,96464.0,0.01296871]
[1736864335840,0.3608,96478.0,96463.0,0.43946662]
[1736864336050,0.0688,96477.0,96463.0,0.43946662]
[1736864336433,0.0688,96477.0,96463.0,0.37316662]
[1736864337133,0.3608,96464.0,96463.0,0.01236662]
[1736864337336,0.3608,96464.0,96463.0,0.003]
[1736864337934,0.3608,96464.0,96463.0,0.005]
[1736864338941,0.3608,96464.0,96463.0,0.002]
[1736864339243,0.3608,96464.0,96463.0,0.005]
[1736864339836,0.3608,96464.0,96463.0,0.002]
[1736864340040,0.3608,96464.0,96463.0,0.005]
[1736864345752,0.00038046,109060.0,96473.0,0.051851]
[1736864345753,0.3608,96483.0,96473.0,0.051851]
[1736864346043,0.3608,96483.0,96463.0,0.006]
[1736864346044,0.3608,96507.0,96484.0,0.051845]
[1736864346244,0.3608,96507.0,96494.0,0.051839]
[1736864346442,0.3608,96507.0,96495.0,0.0717]
[1736864346648,0.3608,96516.0,96504.0,0.051834]
[1736864346849,0.3608,96524.0,96510.0,0.3608]
[1736864347051,0.3608,96524.0,96514.0,0.10320154]
[1736864347444,0.3608,96524.0,96514.0,0.1546999]
[1736864347745,0.3608,96524.0,96514.0,0.16413121]
[1736864347947,0.3608,96524.0,96514.0,0.00943131]
[1736864348153,0.3608,96524.0,96510.0,0.3608]
[1736864348547,0.3608,96524.0,96514.0,0.001]
[1736864349047,0.3608,96515.0,96514.0,0.001]
[1736864350247,0.3608,96515.0,96510.0,0.00926301]
[1736864350444,0.3608,96515.0,96501.0,0.3608]
[1736864350642,0.3608,96525.0,96501.0,0.37037143]
[1736864350839,0.3608,96525.0,96502.0,0.001]
[1736864351060,0.3608,96512.0,96502.0,0.001]
[1736864351856,0.3608,96512.0,96501.0,0.37237143]
[1736864352051,0.3608,96512.0,96502.0,0.002]
[1736864353244,0.3608,96504.0,96502.0,0.002]
[1736864354157,0.3608,96504.0,96502.0,0.004]
[1736864354848,0.3608,96504.0,96490.0,0.00155447]
[1736864355046,0.3608,96491.0,96490.0,0.00155447]
[1736864355659,0.3608,96491.0,96490.0,0.00136531]
[1736864356453,0.3608,96504.0,96490.0,0.36216531]
[1736864356652,0.3608,96517.0,96494.0,0.1546999]
[1736864356856,0.3608,96517.0,96503.0,0.1546999]
[1736864358258,0.3608,96517.0,96504.0,0.1407]
[1736864358655,0.002,96513.0,96504.0,0.1407]
[1736864359951,0.003,96513.0,96504.0,0.1407]
[1736864360361,0.003,96513.0,96507.0,0.3608]
[1736864360661,0.003,96513.0,96508.0,0.001]
[1736864360856,0.3608,96527.0,96508.0,0.001]
[1736864361060,0.3608,96527.0,96517.0,0.1546999]
[1736864361671,0.3608,96527.0,96518.0,0.001]
[1736864361864,0.3608,96527.0,96518.0,0.0715]
[1736864362059,0.3608,96536.0,96518.0,0.0715]
[1736864362260,0.3608,96536.0,96526.0,0.1546999]
[1736864363853,0.3608,96528.0,96520.0,0.1546999]
[1736864366163,0.3618,96528.0,96520.0,0.1546999]
[1736864367963,0.3618,96528.0,96516.0,0.37038189]
[1736864368169,0.3608,96523.0,96516.0,0.37038189]
[1736864368366,0.3608,96523.0,96518.0,0.1546999]
[1736864368565,0.001,96528.0,96518.0,0.1546999]
[1736864369667,0.3608,96538.0,96518.0,0.1546999]
[1736864369871,0.3608,96538.0,96528.0,0.1546999]
[1736864370475,0.001,96528.0,96520.0,0.1546999]
[1736864372569,0.3608,96530.0,96520.0,0.1546999]
[1736864373175,0.3628,96538.0,96520.0,0.1546999]
[1736864373381,0.3608,96538.0,96528.0,0.10311333]
[1736864373673,0.3608,96530.0,96520.0,0.10311333]
[1736864373878,0.3608,96530.0,96516.0,0.37038189]
[1736864374178,0.1415,96529.0,96516.0,0.37038189]
[1736864374380,0.1415,96529.0,96519.0,0.10311333]
[1736864377376,0.1425,96529.0,96519.0,0.10311333]
[1736864379276,0.0732,96529.0,96519.0,0.10311333]
[1736864379668,0.001,96529.0,96525.0,0.3608]
[1736864379873,0.001,96529.0,96526.0,0.2193]
[1736864380071,0.001,96529.0,96526.0,1.7193]
[1736864380277,0.001,96529.0,96526.0,0.2193]
[1736864380772,0.002,96529.0,96526.0,0.2193]
[1736864380976,0.002,96529.0,96526.0,0.1469]
[1736864381671,0.002,96529.0,96526.0,0.1479]
[1736864381876,0.002,96529.0,96526.0,0.01084743]
[1736864382274,0.002,96529.0,96526.0,0.001]
[1736864382485,0.002,96529.0,96516.0,0.3608]
[1736864382681,0.1421,96528.0,96519.0,0.10311333]
[1736864383587,0.1421,96528.0,96516.0,0.37058518]
[1736864383779,0.1421,96528.0,96516.0,0.3608]
[1736864383971,0.067,96527.0,96516.0,0.3608]
[1736864384374,0.7216,96521.0,96500.0,0.0705]
[1736864384684,0.7216,96521.0,96497.0,0.0096383]
[1736864384685,0.3608,96510.0,96497.0,0.0096383]
[1736864384878,0.3608,96510.0,96500.0,0.10311333]
[1736864385478,0.3608,96510.0,96500.0,0.15474083]
[1736864386099,0.3608,96521.0,96500.0,0.15474083]
[1736864386279,0.3608,96521.0,96510.0,0.15474083]
[1736864386881,0.3608,96521.0,96516.0,0.001]
[1736864387788,0.3608,96521.0,96510.0,0.15774083]
[1736864387988,0.3608,96521.0,96510.0,0.002]
[1736864388375,0.3608,96511.0,96510.0,0.002]
[1736864389682,0.3608,96511.0,96490.0,0.15474083]
[1736864389990,0.3608,96511.0,96493.0,0.37036627]
[1736864390189,0.3608,96521.0,96510.0,0.001]
[1736864390386,0.3608,96521.0,96510.0,0.15574083]
[1736864390690,0.3608,96521.0,96510.0,0.15674083]
[1736864390884,0.3608,96521.0,96511.0,0.0672]
[1736864391693,0.3608,96512.0,96510.0,0.003]
[1736864392584,0.3608,96520.0,96510.0,0.003]
[1736864392889,0.3608,96511.0,96510.0,0.003]
[1736864393203,0.3608,96511.0,96501.0,0.24833941]
[1736864393391,0.3608,96511.0,96493.0,0.24833941]
[1736864393586,0.3608,96511.0,96510.0,0.001]
[1736864393985,0.3608,96511.0,96510.0,0.003]
[1736864394583,0.3608,96520.0,96510.0,0.003]
[1736864396394,0.3608,96511.0,96510.0,0.003]
[1736864396983,0.3608,96520.0,96510.0,0.003]
[1736864397189,0.3608,96532.0,96510.0,0.15774083]
[1736864397386,0.3608,96532.0,96520.0,0.15474083]
[1736864397783,0.3608,96532.0,96511.0,0.2173]
[1736864398296,0.3608,96532.0,96520.0,0.15474083]
[1736864400599,0.3608,96524.0,96511.0,0.2183]
[1736864400891,0.3608,96524.0,96510.0,0.002]
[1736864401090,0.3608,96524.0,96510.0,0.00957006]
[1736864401289,0.3608,96524.0,96509.0,0.3608]
[1736864401493,0.3608,96524.0,96510.0,0.15474083]
[1736864402391,0.3608,96524.0,96509.0,0.3707436]
[1736864402785,0.3608,96524.0,96511.0,0.001]
[1736864402988,0.0726,96523.0,96511.0,0.001]
[1736864403597,0.3608,96524.0,96510.0,0.15474083]
[1736864403795,0.3608,96514.0,96509.0,0.003]
[1736864404301,0.3608,96514.0,96511.0,0.001]
[1736864406390,0.3608,96514.0,96507.0,0.00967512]
[1736864406391,0.3608,96524.0,96507.0,0.00967512]
[1736864406599,0.3608,96515.0,96511.0,0.002]
[1736864407592,0.3608,96515.0,96507.0,0.004]
[1736864407593,0.2122,96514.0,96507.0,0.004]
[1736864407793,0.3608,96512.0,96507.0,0.004]
[1736864409508,0.3608,96512.0,96511.0,0.001]
[1736864409804,0.3608,96512.0,96511.0,0.002]
[1736864410206,0.3608,96512.0,96511.0,0.001]
[1736864411004,0.3608,96512.0,96511.0,0.002]
[1736864420533,0.3608,96512.0,96479.0,1.8608]
[1736864420534,0.6618,96512.0,96491.0,0.24849595]
[1736864420705,0.3608,96492.0,96491.0,0.24849595]
[1736864421009,0.3608,96492.0,96491.0,0.23866193]
[1736864421406,0.3608,96492.0,96468.0,0.23866193]
[1736864421606,0.3608,96492.0,96471.0,0.07354987]
[1736864421607,0.3608,96483.0,96471.0,0.07354987]
[1736864422608,0.3608,96493.0,96471.0,0.07354987]
[1736864422804,0.3608,96493.0,96491.0,0.009]
[1736864423407,0.3608,96493.0,96482.0,0.01055449]
[1736864423697,0.3608,96493.0,96491.0,0.005]
[1736864424110,0.3608,96493.0,96492.0,0.0611]
[1736864425317,0.3608,96493.0,96491.0,0.009]
[1736864425506,0.3608,96493.0,96482.0,0.00155449]
[1736864425507,0.3608,96493.0,96492.0,0.003]
[1736864426312,0.3608,96493.0,96492.0,0.011]
[1736864427212,0.3608,96493.0,96492.0,0.008]
[1736864428212,0.3608,96493.0,96492.0,0.011]
[1736864429620,0.3608,96502.0,96492.0,0.011]
[1736864430611,0.00155505,96503.0,96493.0,0.0628]
[1736864431111,0.00155505,96503.0,96495.0,0.051839]
[1736864431315,0.00155505,96503.0,96496.0,0.0129647]
[1736864431518,0.3608,96521.0,96497.0,0.3737647]
[1736864431814,0.3608,96521.0,96510.0,0.10319576]
[1736864432017,0.3608,96521.0,96511.0,0.0596]
[1736864432420,0.3608,96512.0,96511.0,0.0596]
[1736864432905,0.3608,96512.0,96501.0,0.0596]
[1736864433524,0.3608,96521.0,96501.0,0.0596]
[1736864433807,0.3608,96521.0,96511.0,0.001]